bitfinex/quotes_BTCUSD_20241203
["timestamp","ask_amount","ask_price","bid_price","bid_amount"]
[1733263214568,0.208025,96142.0,96140.0,0.00190333]
[1733263214795,0.25471259,96141.0,96140.0,0.00190333]
[1733263216559,0.25557589,96141.0,96140.0,0.00190333]
[1733263216790,0.34614638,96141.0,96140.0,0.00190333]
[1733263217023,0.25557589,96141.0,96140.0,0.00190333]
[1733263217243,0.26334042,96141.0,96140.0,0.00190333]
[1733263217898,0.46334042,96141.0,96140.0,0.00190333]
[1733263218899,0.74004042,96141.0,96140.0,0.00190333]
[1733263219145,0.78954042,96141.0,96140.0,0.00190333]
[1733263219373,0.78954042,96141.0,96123.0,17.99276701]
[1733263219374,0.208064,96124.0,96123.0,17.99276701]
[1733263219603,0.208064,96124.0,96123.0,17.8691973]
[1733263219604,0.46277659,96124.0,96123.0,17.8691973]
[1733263219818,0.46277659,96124.0,96123.0,17.86540047]
[1733263220240,0.46277659,96124.0,96123.0,17.85973213]
[1733263220694,0.47977659,96124.0,96123.0,17.86173213]
[1733263220949,0.52397561,96124.0,96123.0,17.86073213]
[1733263221164,0.53173242,96124.0,96123.0,17.86073213]
[1733263221602,0.52397561,96124.0,96123.0,17.86073213]
[1733263221821,0.99207561,96124.0,96123.0,17.85973213]
[1733263222290,1.01782936,96124.0,96123.0,17.86173213]
[1733263222483,1.0149711,96124.0,96123.0,17.86173213]
[1733263223864,1.0633711,96124.0,96123.0,17.86173213]
[1733263224092,0.9388711,96124.0,96123.0,17.52769713]
[1733263224321,0.97126567,96124.0,96123.0,17.52769713]
[1733263224564,0.9859202,96124.0,96123.0,17.52769713]
[1733263224778,0.9859202,96124.0,96123.0,16.99354972]
[1733263225010,0.9859202,96124.0,96123.0,16.97274272]
[1733263225672,0.9859202,96124.0,96123.0,16.95193572]
[1733263226203,0.9859202,96124.0,96123.0,16.86847326]
[1733263226877,0.9769202,96124.0,96123.0,16.76343826]
[1733263227107,0.9679202,96124.0,96123.0,16.76243826]
[1733263227318,0.9679202,96124.0,96123.0,16.31151885]
[1733263227544,0.9769202,96124.0,96123.0,16.31151885]
[1733263228227,0.9859202,96124.0,96123.0,16.20748385]
[1733263228979,0.9859202,96124.0,96123.0,16.10344885]
[1733263229207,1.00483505,96124.0,96123.0,16.10344885]
[1733263229861,1.00483505,96124.0,96123.0,16.06183485]
[1733263230096,1.00483505,96124.0,96123.0,15.9939988]
[1733263230314,1.00483505,96124.0,96123.0,15.54307939]
[1733263230765,1.00483505,96124.0,96123.0,15.50146539]
[1733263231004,1.00483505,96124.0,96123.0,15.43904439]
[1733263231451,1.00479555,96124.0,96123.0,15.43904439]
[1733263232073,1.00479555,96124.0,96123.0,15.34512238]
[1733263232543,1.00479555,96124.0,96123.0,15.32431538]
[1733263232769,0.9388316,96124.0,96123.0,15.28270138]
[1733263232991,0.97331504,96124.0,96123.0,15.26189438]
[1733263233212,0.97331504,96124.0,96123.0,15.24108738]
[1733263233665,0.97331504,96124.0,96123.0,15.22028038]
[1733263233976,0.97331504,96124.0,96123.0,15.13705238]
[1733263236071,0.97331504,96124.0,96123.0,15.02407568]
[1733263236752,1.00688442,96124.0,96123.0,15.02407568]
[1733263236969,1.00688442,96124.0,96123.0,14.98246168]
[1733263237390,1.00688442,96124.0,96123.0,14.94084768]
[1733263237643,1.00688442,96124.0,96123.0,14.92004068]
[1733263237865,1.00688442,96124.0,96123.0,14.83681268]
[1733263238500,1.00688442,96124.0,96123.0,14.8126197]
[1733263238715,1.00688442,96124.0,96123.0,14.78033098]
[1733263238928,1.00688442,96124.0,96123.0,14.71954173]
[1733263239153,1.00688442,96124.0,96123.0,14.67792773]
[1733263239798,1.00688442,96124.0,96123.0,14.65712073]
[1733263240009,1.00688442,96124.0,96123.0,14.56263181]
[1733263241153,1.00688442,96124.0,96123.0,14.54182481]
[1733263241154,1.00774782,96124.0,96123.0,14.54182481]
[1733263241370,1.00774782,96124.0,96123.0,14.52101781]
[1733263241623,1.00774782,96124.0,96123.0,14.45859681]
[1733263241847,1.00776686,96124.0,96123.0,14.35456181]
[1733263242070,1.00776686,96124.0,96123.0,14.35356181]
[1733263242937,1.00776686,96124.0,96123.0,14.24852681]
[1733263243817,1.00776686,96124.0,96123.0,14.22771981]
[1733263244038,1.00776686,96124.0,96123.0,14.14449181]
[1733263245366,1.00776686,96124.0,96123.0,14.06126381]
[1733263245621,1.00776686,96124.0,96123.0,14.04045681]
[1733263245837,1.00776686,96124.0,96123.0,14.01964981]
[1733263246281,1.00776686,96124.0,96123.0,13.97803581]
[1733263246503,1.00776686,96124.0,96123.0,13.93642181]
[1733263246719,1.00776686,96124.0,96123.0,13.91561481]
[1733263247010,1.00776686,96124.0,96123.0,13.85319381]
[1733263247225,1.00776686,96124.0,96123.0,13.83238681]
[1733263247436,1.00776686,96124.0,96123.0,13.5587885]
[1733263247867,0.98976686,96124.0,96123.0,13.45214946]
[1733263248314,0.99876686,96124.0,96123.0,13.45214946]
[1733263248539,1.03105813,96124.0,96123.0,13.45214946]
[1733263248751,1.03105813,96124.0,96123.0,13.40529334]
[1733263248972,1.03105813,96124.0,96123.0,13.36367934]
[1733263249188,1.03105813,96124.0,96123.0,13.34287234]
[1733263249397,1.04005813,96124.0,96123.0,13.34287234]
[1733263249621,1.03105813,96124.0,96123.0,13.34287234]
[1733263250056,1.02205813,96124.0,96123.0,13.30125834]
[1733263250279,1.03105813,96124.0,96123.0,13.23883734]
[1733263250721,1.03105813,96124.0,96123.0,13.21803034]
[1733263251143,1.04005813,96124.0,96123.0,13.21803034]
[1733263251356,1.57435813,96124.0,96123.0,13.13480234]
[1733263251786,1.57435813,96124.0,96123.0,13.02807505]
[1733263252700,1.57435813,96124.0,96123.0,13.00726805]
[1733263252925,1.57435813,96124.0,96123.0,12.98646105]
[1733263253168,1.57435813,96124.0,96123.0,12.96461796]
[1733263253431,1.57435813,96124.0,96123.0,12.896962]
[1733263253651,1.57435813,96124.0,96123.0,12.876155]
[1733263254120,1.57435813,96124.0,96123.0,12.813734]
[1733263254341,1.57435813,96124.0,96123.0,12.792927]
[1733263254835,1.57435813,96124.0,96123.0,12.77212]
[1733263255288,1.57435813,96124.0,96123.0,12.67314411]
[1733263255517,1.57435813,96124.0,96123.0,12.21021509]
[1733263255740,1.57435813,96124.0,96123.0,11.89305615]
[1733263256436,1.57435813,96124.0,96123.0,11.78108607]
[1733263256437,1.56535813,96124.0,96123.0,11.78108607]
[1733263256658,1.57435813,96124.0,96123.0,11.76027907]
[1733263257169,1.57435813,96124.0,96123.0,11.59785807]
[1733263257400,1.57435813,96124.0,96123.0,11.57705107]
[1733263257614,1.57435813,96124.0,96123.0,11.47705107]
[1733263257828,1.56535813,96124.0,96123.0,11.39382307]
[1733263258048,1.56535813,96124.0,96123.0,11.27081607]
[1733263258707,1.57441646,96124.0,96123.0,11.10689507]
[1733263258924,1.57441646,96124.0,96123.0,11.06528107]
[1733263259145,1.57441646,96124.0,96123.0,10.96528107]
[1733263259366,1.57441646,96124.0,96123.0,10.96408107]
[1733263259597,1.57441646,96124.0,96123.0,10.86408107]
[1733263259816,1.57441646,96124.0,96123.0,10.82246707]
[1733263260031,1.57441646,96124.0,96123.0,10.68085307]
[1733263260473,1.57441646,96124.0,96123.0,10.56004607]
[1733263260713,1.57441646,96124.0,96123.0,10.47681807]
[1733263260977,1.57441646,96124.0,96123.0,10.35601107]
[1733263261212,1.41551288,96124.0,96123.0,9.44535358]
[1733263261432,1.41524486,96124.0,96123.0,9.33498425]
[1733263261653,1.3819435,96124.0,96123.0,9.23926189]
[1733263261891,1.3819435,96124.0,96123.0,9.19764789]
[1733263262109,1.40245709,96124.0,96123.0,8.89564789]
[1733263262376,1.50716968,96124.0,96123.0,8.65705436]
[1733263262602,1.50716968,96124.0,96123.0,8.55705436]
[1733263262831,1.50716968,96124.0,96123.0,8.45301936]
[1733263263050,1.50716968,96124.0,96123.0,8.14471475]
[1733263263267,1.50808835,96124.0,96123.0,8.14471475]
[1733263263498,1.64783099,96124.0,96123.0,8.04471475]
[1733263263738,1.50808835,96124.0,96123.0,7.91983497]
[1733263263991,1.50808835,96124.0,96123.0,7.79813497]
[1733263264213,1.50808835,96124.0,96123.0,7.49613497]
[1733263264441,1.50808835,96124.0,96123.0,7.35984389]
[1733263264666,1.50808835,96124.0,96123.0,7.31298941]
[1733263264953,1.50808835,96124.0,96123.0,7.12393595]
[1733263264954,1.50029673,96124.0,96123.0,7.12393595]
[1733263265208,1.50029673,96124.0,96123.0,6.5620616]
[1733263265437,1.49390258,96124.0,96123.0,6.31514909]
[1733263265706,1.49390258,96124.0,96123.0,6.25838313]
[1733263265963,1.49390258,96124.0,96123.0,6.09596213]
[1733263266243,1.48490258,96124.0,96123.0,5.65936617]
[1733263266487,1.48490258,96124.0,96123.0,5.55936617]
[1733263266711,1.48490258,96124.0,96123.0,5.18864056]
[1733263266980,1.48490258,96124.0,96123.0,4.93872195]
[1733263267238,1.48490258,96124.0,96123.0,4.83872195]
[1733263267477,1.47590258,96124.0,96123.0,4.83872195]
[1733263267703,1.47590258,96124.0,96123.0,4.65282735]
[1733263267930,1.47590258,96124.0,96123.0,4.61121335]
[1733263267931,1.49390258,96124.0,96123.0,4.61121335]
[1733263268157,1.48490258,96124.0,96123.0,4.51121335]
[1733263268384,1.48516412,96124.0,96123.0,4.38570659]
[1733263268900,1.48516412,96124.0,96123.0,4.21913596]
[1733263268901,1.49416412,96124.0,96123.0,4.21913596]
[1733263269162,1.51046419,96124.0,96123.0,3.50814175]
[1733263269653,1.51046419,96124.0,96123.0,3.40814175]
[1733263269894,1.51046419,96124.0,96123.0,3.34564441]
[1733263270148,1.51046419,96124.0,96016.0,0.09328849]
[1733263270149,0.2,96029.0,96016.0,0.09328849]
[1733263270402,0.2,96029.0,95982.0,0.27939148]
[1733263270403,0.2,96022.0,96003.0,0.18626098]
[1733263270632,0.33300081,96011.0,95993.0,0.23282623]
[1733263270875,0.33300081,96011.0,95975.0,0.2]
[1733263270876,0.12468981,96011.0,95994.0,0.23282623]
[1733263271113,0.12468981,96011.0,95981.0,0.23282623]
[1733263271114,0.208311,96010.0,95981.0,0.23282623]
[1733263271357,0.208311,96010.0,95981.0,0.14195303]
[1733263271594,0.416628,96009.0,95982.0,0.10471259]
[1733263271853,0.416628,96009.0,95981.0,0.00015687]
[1733263271854,0.208337,95998.0,95981.0,0.00015687]
[1733263272114,0.12468981,96000.0,95951.0,0.27939148]
[1733263272337,0.12468981,96000.0,95950.0,0.12468981]
[1733263272338,0.0018441,95999.0,95981.0,0.10471259]
[1733263272600,0.0018441,96004.0,95965.0,0.0018439]
[1733263272850,0.0018441,96003.0,95967.0,0.108404]
[1733263273093,0.001,95998.0,95970.0,0.15]
[1733263273351,0.0018441,96003.0,95970.0,0.15]
[1733263273352,0.0018441,96003.0,95971.0,0.10655649]
[1733263273609,0.2101621,96007.0,95971.0,0.10655649]
[1733263273838,0.10655669,96006.0,95971.0,0.00655649]
[1733263274075,0.00230487,96005.0,95973.0,0.0461]
[1733263274324,0.00230487,96005.0,95969.0,0.2084]
[1733263274325,0.10471259,96004.0,95979.0,0.0234]
[1733263274561,0.10471259,96004.0,95974.0,0.02052242]
[1733263274562,0.00730487,96003.0,95974.0,0.02052242]
[1733263274787,0.0823,96041.0,95974.0,0.02052242]
[1733263274788,0.2,96030.0,95975.0,0.32760483]
[1733263275078,0.290516,96055.0,95975.0,0.32760483]
[1733263275079,0.2,96028.0,95976.0,0.00092107]
[1733263275305,0.107,96006.0,95979.0,0.208378]
[1733263275538,0.107,96006.0,95978.0,0.208381]
[1733263275539,0.002,96004.0,95981.0,0.05]
[1733263275769,0.002,96004.0,95982.0,0.10563376]
[1733263275770,0.005,96003.0,95982.0,0.10563376]
[1733263276000,0.0207,96006.0,95987.0,0.20836]
[1733263276260,0.0207,96006.0,95983.0,0.208368]
[1733263276261,0.0207,96006.0,95988.0,0.00092117]
[1733263276498,0.0207,96006.0,95988.0,0.208358]
[1733263276724,0.0207,96006.0,95983.0,0.108368]
[1733263276951,0.0207,96006.0,95984.0,0.07050596]
[1733263277214,0.0207,96006.0,95973.0,0.1793]
[1733263277472,0.0207,96001.0,95966.0,0.0008634]
[1733263277740,0.0663366,95994.0,95967.0,0.208404]
[1733263277998,0.0663366,95994.0,95963.0,0.208412]
[1733263278227,0.001,96003.0,95961.0,5.886e-05]
[1733263278228,0.208357,95989.0,95961.0,5.886e-05]
[1733263278474,0.35,96007.0,95942.0,0.1336634]
[1733263278475,0.0663366,95987.0,95958.0,0.208424]
[1733263278705,0.0663366,95987.0,95948.0,0.2]
[1733263278706,0.00230511,95986.0,95948.0,0.2]
[1733263278960,0.00230511,95986.0,95958.0,0.108424]
[1733263279188,0.0663366,95977.0,95947.0,0.208448]
[1733263279413,0.0663366,95977.0,95946.0,0.054]
[1733263279414,0.06864193,95976.0,95946.0,0.054]
[1733263279867,0.06864193,95976.0,95948.0,0.208446]
[1733263280159,0.0663366,95974.0,95948.0,0.208445]
[1733263280415,0.0663366,95974.0,95937.0,0.09292476]
[1733263280416,0.0663366,95969.0,95935.0,0.30139776]
[1733263280668,0.06864215,95968.0,95961.0,0.002]
[1733263280890,0.0663366,95966.0,95948.0,0.003]
[1733263281117,0.0663366,95966.0,95931.0,0.408482]
[1733263281118,0.0663366,95966.0,95938.0,0.208467]
[1733263281368,0.0663366,95966.0,95948.0,0.001]
[1733263281624,0.0663366,95966.0,95931.0,0.50140676]
[1733263281854,0.0663366,95966.0,95931.0,0.2]
[1733263282083,0.0663366,95966.0,95948.0,0.001]
[1733263282311,0.0663366,95966.0,95939.0,0.208465]
[1733263282547,0.0663366,95966.0,95939.0,0.108465]
[1733263282796,0.0663366,95966.0,95945.0,0.208451]
[1733263283021,0.0663366,95966.0,95945.0,0.208452]
[1733263283465,0.0663366,95966.0,95935.0,0.1336634]
[1733263283466,0.0663366,95966.0,95937.0,0.15]
[1733263283684,0.0663366,95966.0,95938.0,0.1004447]
[1733263284167,0.0663366,95966.0,95938.0,0.0004447]
[1733263284393,0.0673366,95966.0,95937.0,0.0504447]
[1733263284625,0.0673366,95966.0,95936.0,0.208472]
[1733263284626,0.0673366,95966.0,95944.0,0.208454]
[1733263284854,0.0683366,95966.0,95936.0,0.208472]
[1733263285079,0.08587207,95966.0,95936.0,0.15417917]
[1733263285379,0.08587207,95966.0,95944.0,0.208454]
[1733263285602,0.08387207,95966.0,95939.0,0.208465]
[1733263285830,0.08387207,95966.0,95945.0,0.208451]
[1733263286053,0.08487207,95966.0,95945.0,0.208451]
[1733263286514,0.08487207,95966.0,95936.0,0.04570717]
[1733263286745,0.01918902,95965.0,95936.0,0.04570717]
[1733263286986,0.01918902,95965.0,95945.0,0.208451]
[1733263287232,0.01918902,95965.0,95946.0,0.20845]
[1733263287483,0.01918902,95965.0,95946.0,0.10845]
[1733263287716,0.01918902,95965.0,95946.0,0.20845]
[1733263288169,0.001,95965.0,95938.0,0.2093318]
[1733263288398,0.001,95965.0,95939.0,0.10471259]
[1733263288630,0.002,95965.0,95939.0,0.10471259]
[1733263289089,0.002,95965.0,95944.0,0.208453]
[1733263289326,0.002,95965.0,95938.0,0.0008648]
[1733263289544,0.19089021,95964.0,95938.0,0.0008648]
[1733263289763,0.0663366,95962.0,95934.0,0.1093398]
[1733263289988,0.0663366,95962.0,95926.0,0.15]
[1733263289989,0.10701833,95961.0,95937.0,0.208469]
[1733263290214,0.17335493,95961.0,95930.0,0.15]
[1733263290466,0.17335493,95961.0,95935.0,0.208472]
[1733263290467,0.0663366,95960.0,95935.0,0.208472]
[1733263290710,0.12610737,95959.0,95940.0,0.208462]
[1733263290932,0.12610737,95959.0,95929.0,0.208487]
[1733263290933,0.12610737,95959.0,95937.0,0.208469]
[1733263291144,0.12610737,95959.0,95937.0,0.210469]
[1733263291363,0.12610737,95959.0,95940.0,0.208462]
[1733263291579,0.12610737,95959.0,95929.0,0.208487]
[1733263291882,0.12610737,95959.0,95924.0,0.2263762]
[1733263291883,0.0192444,95958.0,95942.0,0.208458]
[1733263292099,0.10471259,95957.0,95942.0,0.208458]
[1733263292325,0.10471259,95957.0,95933.0,0.208476]
[1733263292570,0.0663366,95960.0,95951.0,0.208439]
[1733263292792,0.00058763,95974.0,95961.0,0.208416]
[1733263293013,0.10471259,95973.0,95942.0,0.25]
[1733263293229,0.10471259,95973.0,95965.0,0.208408]
[1733263293456,0.10471259,95973.0,95946.0,0.1336634]
[1733263293457,0.10471259,95973.0,95964.0,0.20841]
[1733263293878,0.10471259,95973.0,95946.0,0.1336634]
[1733263294091,0.10471259,95973.0,95959.0,0.20842]
[1733263294321,0.00558763,95974.0,95947.0,0.15]
[1733263294554,0.006,95973.0,95962.0,0.108414]
[1733263294774,0.006,95973.0,95950.0,0.208441]
[1733263294995,0.002,95973.0,95950.0,0.208441]
[1733263295216,0.006,95973.0,95950.0,0.208441]
[1733263295447,0.006,95973.0,95951.0,0.208439]
[1733263295731,0.006,95973.0,95955.0,0.20843]
[1733263295963,0.10471259,95972.0,95955.0,0.20843]
[1733263296184,0.10471259,95972.0,95949.0,0.13033859]
[1733263296625,0.10471259,95972.0,95942.0,0.3421214]
[1733263296848,0.12207627,95972.0,95943.0,0.20130102]
[1733263297077,0.12207627,95972.0,95943.0,0.06035042]
[1733263297325,0.12207627,95972.0,95944.0,0.1336634]
[1733263297558,0.00230532,95971.0,95940.0,0.1390692]
[1733263297797,0.10471259,95970.0,95938.0,0.208467]
[1733263298023,0.27104919,95970.0,95937.0,0.20847]
[1733263298498,0.1663366,95966.0,95933.0,0.1390692]
[1733263298499,0.00230544,95969.0,95926.0,0.1390692]
[1733263298500,0.1663366,95959.0,95926.0,0.1390692]
[1733263298728,0.02136368,95972.0,95928.0,0.208489]
[1733263298729,0.1663366,95957.0,95928.0,0.208489]
[1733263298960,0.10471259,95956.0,95931.0,0.208481]
[1733263299183,0.10471259,95956.0,95922.0,0.408501]
[1733263299415,0.10471259,95956.0,95922.0,0.51321359]
[1733263299658,0.27104919,95956.0,95955.0,0.0008648]
[1733263299903,0.1663366,95951.0,95923.0,0.10283146]
[1733263300125,0.1663366,95951.0,95917.0,0.408513]
[1733263300126,0.10471259,95950.0,95918.0,0.208511]
[1733263300344,0.10471259,95950.0,95922.0,0.004]
[1733263300563,0.10471259,95950.0,95917.0,0.2]
[1733263300783,0.10471259,95950.0,95917.0,0.30471259]
[1733263301019,0.1,95949.0,95923.0,0.208498]
[1733263301246,0.1,95939.0,95914.0,0.05]
[1733263301483,0.10471259,95938.0,95911.0,0.208526]
[1733263301703,0.10471259,95938.0,95905.0,0.0854256]
[1733263301704,0.1,95920.0,95905.0,0.0854256]
[1733263301919,0.1,95920.0,95917.0,0.001]
[1733263301920,0.10471259,95919.0,95917.0,0.001]
[1733263302364,0.10471259,95919.0,95901.0,0.0355848]
[1733263302581,0.02047126,95918.0,95901.0,0.0355848]
[1733263302794,0.12518385,95918.0,95901.0,0.0355848]
[1733263303459,0.10471259,95917.0,95901.0,0.0355848]
[1733263304359,0.1,95910.0,95901.0,0.0355848]
[1733263304650,0.2663366,95902.0,95901.0,0.0355848]
[1733263304875,0.45324919,95902.0,95901.0,0.0355848]
[1733263305091,0.45324919,95902.0,95862.0,0.2322563]
[1733263305092,0.4163366,95898.0,95862.0,0.2322563]
[1733263305309,0.4163366,95898.0,95859.0,0.0008648]
[1733263305310,0.52104919,95898.0,95859.0,0.0008648]
[1733263305526,0.62308371,95898.0,95859.0,0.0008648]
[1733263306272,0.70528371,95898.0,95859.0,0.0008648]
[1733263306498,0.2663366,95871.0,95859.0,0.0008648]
[1733263306714,0.45324919,95871.0,95859.0,0.0008648]
[1733263307153,0.49984919,95871.0,95859.0,0.0008648]
[1733263307392,0.69983411,95871.0,95859.0,0.0008648]
[1733263307839,0.1,95860.0,95859.0,0.0008648]
[1733263308070,0.52104919,95860.0,95859.0,0.0008648]
[1733263310101,0.28004919,95860.0,95859.0,0.0008648]
[1733263310346,0.27104919,95860.0,95859.0,0.0008648]
[1733263310564,0.11371259,95860.0,95859.0,0.0008648]
[1733263310778,0.11771259,95860.0,95859.0,0.0008648]
[1733263310990,0.10871259,95860.0,95859.0,0.0008648]
[1733263311288,0.11771259,95860.0,95859.0,0.0008648]
[1733263311528,0.1663366,95861.0,95859.0,0.0008648]
[1733263311747,0.03063366,95860.0,95859.0,0.0008648]
[1733263311968,0.13534625,95860.0,95859.0,0.0008648]
[1733263312415,0.23765427,95860.0,95859.0,0.0008648]
[1733263312631,0.40168285,95860.0,95859.0,0.0008648]
[1733263312856,0.40268285,95860.0,95859.0,0.0008648]
[1733263313074,0.39968285,95860.0,95859.0,0.0008648]
[1733263313518,0.40868285,95860.0,95859.0,0.0008648]
[1733263313742,0.39768285,95860.0,95859.0,0.0008648]
[1733263313968,0.40168285,95860.0,95859.0,0.0008648]
[1733263314187,0.41068285,95860.0,95859.0,0.0008648]
[1733263314416,0.40168285,95860.0,95859.0,0.0008648]
[1733263314654,0.60718285,95860.0,95859.0,0.0008648]
[1733263314908,0.60318285,95860.0,95859.0,0.0008648]
[1733263315588,0.45318285,95860.0,95859.0,0.0008648]
[1733263316259,0.45718285,95860.0,95859.0,0.0008648]
[1733263318993,0.38404919,95860.0,95859.0,0.0008648]
[1733263319214,0.38299925,95860.0,95859.0,0.0008648]
[1733263319881,0.37899925,95860.0,95859.0,0.0008648]
[1733263320093,0.36999925,95860.0,95859.0,0.0008648]
[1733263320319,0.37899925,95860.0,95859.0,0.0008648]
[1733263320536,0.41689918,95860.0,95859.0,0.0008648]
[1733263320995,0.40789918,95860.0,95859.0,0.0008648]
[1733263321730,0.41689918,95860.0,95859.0,0.0008648]
[1733263322952,0.42089918,95860.0,95859.0,0.0008648]
[1733263323457,0.55789918,95860.0,95859.0,0.0008648]
[1733263323698,0.64579918,95860.0,95859.0,0.0008648]
[1733263323934,0.65479918,95860.0,95859.0,0.0008648]
[1733263324167,0.1663366,95851.0,95850.0,0.0008648]
[1733263324423,0.28768285,95851.0,95850.0,0.0008648]
[1733263324929,0.59633985,95851.0,95850.0,0.0008648]
[1733263325155,0.74633985,95851.0,95850.0,0.0008648]
[1733263325633,0.82373985,95851.0,95850.0,0.0008648]
[1733263325863,0.6249976,95849.0,95848.0,0.09989849]
[1733263326095,0.83254165,95849.0,95848.0,0.09989849]
[1733263326819,0.90994165,95849.0,95848.0,0.09989849]
[1733263327076,1.10994165,95849.0,95848.0,0.02179849]
[1733263327360,1.10994165,95849.0,95848.0,0.01660295]
[1733263327591,0.7013326,95833.0,95807.0,0.0145848]
[1733263327828,0.68835145,95833.0,95807.0,0.0145848]
[1733263329008,0.68893764,95833.0,95807.0,0.0145848]
[1733263329497,0.69193764,95833.0,95807.0,0.0145848]
[1733263329942,0.69893764,95833.0,95807.0,0.0145848]
[1733263330182,0.89593764,95833.0,95807.0,0.0145848]
[1733263330476,0.95353764,95833.0,95807.0,0.0145848]
[1733263330709,0.4981366,95808.0,95807.0,0.0145848]
[1733263330935,0.60284919,95808.0,95807.0,0.0145848]
[1733263331609,0.64924919,95808.0,95807.0,0.0145848]
[1733263332585,0.65224919,95808.0,95807.0,0.0145848]
[1733263332814,0.64924919,95808.0,95807.0,0.0145848]
[1733263333054,0.62588285,95808.0,95807.0,0.0145848]
[1733263333285,0.64088285,95808.0,95807.0,0.0145848]
[1733263333513,0.63188285,95808.0,95807.0,0.0145848]
[1733263333744,0.63488285,95808.0,95807.0,0.0145848]
[1733263334221,0.63188285,95808.0,95807.0,0.0145848]
[1733263334674,0.63188285,95808.0,95807.0,0.0154506]
[1733263334902,0.48704919,95808.0,95807.0,0.0154506]
[1733263335357,0.48104919,95808.0,95807.0,0.0154506]
[1733263335589,0.49004919,95808.0,95807.0,0.0154506]
[1733263335824,0.34604919,95808.0,95807.0,0.0154506]
[1733263336050,0.21971259,95808.0,95807.0,0.0154506]
[1733263336264,0.23931751,95808.0,95807.0,0.0154506]
[1733263336494,0.25331751,95808.0,95807.0,0.0154506]
[1733263337042,0.23931751,95808.0,95807.0,0.0154506]
[1733263337251,0.24731751,95808.0,95807.0,0.0154506]
[1733263337455,0.25231751,95808.0,95807.0,0.0154506]
[1733263337672,0.15231751,95808.0,95807.0,0.0154506]
[1733263338108,0.013,95808.0,95807.0,0.0154506]
[1733263338328,0.005,95808.0,95807.0,0.0154506]
[1733263338538,0.2263366,95825.0,95807.0,0.0154506]
[1733263338539,0.1263366,95825.0,95807.0,0.0154506]
[1733263338748,0.012,95808.0,95807.0,0.0154506]
[1733263338965,0.003,95808.0,95807.0,0.0154506]
[1733263339182,0.009,95808.0,95807.0,0.0136315]
[1733263339403,0.10471259,95824.0,95807.0,0.0136315]
[1733263340522,0.03310492,95823.0,95807.0,0.0136315]
[1733263340776,0.13781751,95823.0,95807.0,0.0136315]
[1733263341001,0.1,95820.0,95807.0,0.0136315]
[1733263341213,0.10471259,95819.0,95807.0,0.0136315]
[1733263341423,0.1263366,95814.0,95807.0,0.0136315]
[1733263341634,0.10471259,95813.0,95807.0,0.0136315]
[1733263341865,0.1,95812.0,95807.0,0.0136315]
[1733263342109,0.1,95808.0,95807.0,0.0136315]
[1733263342324,0.20702205,95808.0,95807.0,0.0136315]
[1733263342548,0.33335865,95808.0,95807.0,0.0136315]
[1733263342754,0.33104919,95808.0,95807.0,0.0136315]
[1733263343409,0.33104919,95808.0,95807.0,0.0146315]
[1733263343621,0.4145805,95808.0,95807.0,0.0146315]
[1733263344059,0.4145805,95808.0,95807.0,0.0136315]
[1733263344769,0.33904919,95808.0,95807.0,0.0136315]
[1733263344978,0.11271259,95808.0,95807.0,0.0136315]
[1733263345188,0.11671259,95808.0,95807.0,0.0136315]
[1733263345397,0.12571259,95808.0,95807.0,0.0136315]
[1733263345608,0.20871259,95808.0,95807.0,0.0136315]
[1733263345834,0.1,95814.0,95807.0,0.0136315]
[1733263346042,0.10471259,95813.0,95807.0,0.0136315]
[1733263346255,0.011,95808.0,95807.0,0.0136315]
[1733263346472,0.1,95823.0,95807.0,0.0136315]
[1733263346685,0.10471259,95822.0,95808.0,0.20875]
[1733263347119,0.1,95818.0,95807.0,0.0136315]
[1733263347325,0.1,95815.0,95807.0,0.0136315]
[1733263347527,0.10471259,95814.0,95807.0,0.0136315]
[1733263347950,0.002,95808.0,95807.0,0.0136315]
[1733263348163,0.10471259,95814.0,95807.0,0.0136315]
[1733263348384,0.03310492,95821.0,95807.0,0.0136315]
[1733263348588,0.10471259,95820.0,95807.0,0.0136315]
[1733263349032,0.003,95822.0,95807.0,0.0136315]
[1733263349250,0.1,95832.0,95819.0,0.208726]
[1733263349470,0.10471259,95831.0,95820.0,0.291623]
[1733263349758,0.1,95836.0,95820.0,0.500346]
[1733263349973,0.20529878,95833.0,95823.0,0.09225684]
[1733263350426,0.20529878,95833.0,95827.0,0.09225684]
[1733263350636,0.20529878,95833.0,95825.0,0.34709727]
[1733263350637,0.1,95840.0,95829.0,0.09225684]
[1733263350859,0.10471259,95839.0,95829.0,0.09225684]
[1733263351069,0.10471259,95839.0,95830.0,0.09225684]
[1733263351280,0.10471259,95839.0,95833.0,0.09320275]
[1733263351492,0.10471259,95839.0,95835.0,0.09320275]
[1733263351920,0.10471259,95839.0,95835.0,0.7]
[1733263352131,0.10471259,95839.0,95835.0,0.79320275]
[1733263352621,0.10471259,95839.0,95836.0,0.09320275]
[1733263352865,0.10471259,95839.0,95836.0,0.79320275]
[1733263353113,0.1,95849.0,95837.0,0.09320275]
[1733263353364,0.10471259,95848.0,95840.0,0.09326983]
[1733263353583,0.10471259,95848.0,95844.0,0.09326983]
[1733263353797,0.10471259,95848.0,95845.0,0.09326983]
[1733263354453,0.10471259,95848.0,95839.0,0.7]
[1733263354454,0.10471259,95848.0,95844.0,0.09326983]
[1733263354881,0.10871259,95848.0,95843.0,0.09326983]
[1733263355097,0.02087126,95847.0,95845.0,0.7]
[1733263355314,0.10871259,95848.0,95845.0,0.7]
[1733263355964,0.10571259,95848.0,95845.0,0.7]
[1733263356179,0.10971259,95848.0,95845.0,0.7]
[1733263356396,0.10871259,95848.0,95845.0,0.7]
[1733263356830,0.10971259,95848.0,95845.0,0.7]
[1733263357558,0.10571259,95848.0,95845.0,0.7]
[1733263357996,0.10771259,95848.0,95845.0,0.7]
[1733263358211,0.1263366,95856.0,95845.0,0.7]
[1733263358432,0.004,95848.0,95845.0,0.7]
[1733263358646,0.004,95848.0,95846.0,0.208668]
[1733263358897,0.0017326,95848.0,95846.0,0.908668]
[1733263359125,0.0047326,95848.0,95846.0,0.908668]
[1733263359360,0.0057326,95848.0,95846.0,0.908668]
[1733263359574,0.0027326,95848.0,95846.0,0.908668]
[1733263359855,0.0017326,95848.0,95846.0,0.908668]
[1733263360071,0.0017326,95848.0,95847.0,0.1864055]
[1733263360288,0.0017326,95848.0,95847.0,0.7]
[1733263361177,0.0017326,95848.0,95847.0,0.88654158]
[1733263361400,0.0017326,95848.0,95847.0,0.7]
[1733263361622,0.0017326,95848.0,95847.0,0.701]
[1733263362077,0.0017326,95848.0,95847.0,0.7]
[1733263362307,0.0027326,95848.0,95847.0,0.705]
[1733263362522,0.0037326,95848.0,95847.0,0.89850111]
[1733263362737,0.0037326,95848.0,95847.0,0.712]